[Event "Titled Tuesday Blitz April 26 Late 2022"]
[White "Hnydiuk, Aleksander"]
[Black "Swiercz, Dariusz"]
[WhiteFideId "1109057"]
[BlackFideId "1126881"]
[WhiteElo "2374"]
[BlackElo "2627"]
[Result "1-0"]
[Round "04"]
[TimeControl "180+1"]
[Date "2022.04.26"]
[WhiteClock "0:00:04"]
[BlackClock "0:00:01"]

1. Nf3 {[%clk 0:03:00]}  Nf6 {[%clk 0:02:59]} 2. c4 {[%clk 0:02:59]}  g6 {[%clk 0:03:00]} 3. g3 {[%clk 0:02:58]}  Bg7 {[%clk 0:03:00]} 4. Bg2 {[%clk 0:02:59]}  O-O {[%clk 0:03:01]} 5. d4 {[%clk 0:02:59]}  c6 {[%clk 0:03:02]} 6. Nc3 {[%clk 0:02:58]}  d6 {[%clk 0:03:02]} 7. O-O {[%clk 0:02:57]}  Bf5 {[%clk 0:03:02]} 8. Ne1 {[%clk 0:02:56]}  e5 {[%clk 0:03:01]} 9. d5 {[%clk 0:02:48]}  cxd5 {[%clk 0:03:01]} 10. cxd5 {[%clk 0:02:48]}  a5 {[%clk 0:03:01]} 11. e4 {[%clk 0:02:46]}  Bg4 {[%clk 0:03:02]} 12. f3 {[%clk 0:02:45]}  Bd7 {[%clk 0:03:02]} 13. Be3 {[%clk 0:02:44]}  Na6 {[%clk 0:03:02]} 14. Nd3 {[%clk 0:02:42]}  b5 {[%clk 0:03:02]} 15. a3 {[%clk 0:02:28]}  Qb8 {[%clk 0:02:56]} 16. b4 {[%clk 0:02:26]}  Rc8 {[%clk 0:02:56]} 17. Qd2 {[%clk 0:02:21]}  axb4 {[%clk 0:02:50]} 18. axb4 {[%clk 0:02:18]}  Rc4 {[%clk 0:02:49]} 19. Rfb1 {[%clk 0:02:12]}  h5 {[%clk 0:02:32]} 20. Bf1 {[%clk 0:02:10]}  Rc8 {[%clk 0:02:31]} 21. Ra5 {[%clk 0:02:08]}  Nc7 {[%clk 0:02:25]} 22. Rba1 {[%clk 0:02:05]}  Kh7 {[%clk 0:02:19]} 23. R1a3 {[%clk 0:01:41]}  Rxa5 {[%clk 0:02:06]} 24. Rxa5 {[%clk 0:01:31]}  Ng8 {[%clk 0:02:06]} 25. Qa2 {[%clk 0:01:15]}  Bh6 {[%clk 0:02:02]} 26. Bf2 {[%clk 0:01:06]}  Nf6 {[%clk 0:01:50]} 27. Ra7 {[%clk 0:01:03]}  Kg7 {[%clk 0:01:45]} 28. Qa5 {[%clk 0:01:01]}  Nce8 {[%clk 0:01:35]} 29. Qa1 {[%clk 0:00:41]}  Bd2 {[%clk 0:01:20]} 30. Ra3 {[%clk 0:00:32]}  Qc7 {[%clk 0:01:14]} 31. Ne2 {[%clk 0:00:28]}  Bh6 {[%clk 0:01:05]} 32. Bg2 {[%clk 0:00:16]}  Qc2 {[%clk 0:00:56]} 33. Bf1 {[%clk 0:00:15]}  Qc7 {[%clk 0:00:51]} 34. Ra7 {[%clk 0:00:14]}  Qd8 {[%clk 0:00:51]} 35. Bg2 {[%clk 0:00:11]}  Kg8 {[%clk 0:00:47]} 36. h3 {[%clk 0:00:10]}  Rc7 {[%clk 0:00:36]} 37. Ra8 {[%clk 0:00:09]}  Rc8 {[%clk 0:00:36]} 38. Ra7 {[%clk 0:00:10]}  Bg5 {[%clk 0:00:23]} 39. f4 {[%clk 0:00:09]}  exf4 {[%clk 0:00:14]} 40. gxf4 {[%clk 0:00:10]}  Bh6 {[%clk 0:00:14]} 41. e5 {[%clk 0:00:11]}  Nh7 {[%clk 0:00:08]} 42. Nd4 {[%clk 0:00:08]}  Bg7 {[%clk 0:00:05]} 43. e6 {[%clk 0:00:07]}  fxe6 {[%clk 0:00:02]} 44. dxe6 {[%clk 0:00:08]}  Bxe6 {[%clk 0:00:02]} 45. Nxe6 {[%clk 0:00:06]}  Bxa1 {[%clk 0:00:02]} 46. Nxd8 {[%clk 0:00:07]}  Bf6 {[%clk 0:00:01]} 47. Ne6 {[%clk 0:00:07]}  Rc3 {[%clk 0:00:01]} 48. Ra8 {[%clk 0:00:06]}  Rxd3 {[%clk 0:00:01]} 49. Rxe8+ {[%clk 0:00:05]}  Kf7 {[%clk 0:00:01]} 50. Nc7 {[%clk 0:00:06]}  Rc3 {[%clk 0:00:01]} 51. Rc8 {[%clk 0:00:04]} 1-0


[Site "https://www.chess.com"]

[Event "Titled Tuesday Blitz April 26 Late 2022"]
[White "Janaszak, Dawid"]
[Black "Maghsoodloo, Parham"]
[WhiteFideId "1119206"]
[BlackFideId "12539929"]
[WhiteElo "2199"]
[BlackElo "2630"]
[Result "0-1"]
[Round "04"]
[TimeControl "180+1"]
[Date "2022.04.26"]
[WhiteClock "0:00:12"]
[BlackClock "0:00:52"]

1. e4 {[%clk 0:03:00]}  c5 {[%clk 0:02:59]} 2. Nc3 {[%clk 0:03:00]}  d6 {[%clk 0:02:57]} 3. f4 {[%clk 0:02:57]}  a6 {[%clk 0:02:56]} 4. Nf3 {[%clk 0:02:57]}  b5 {[%clk 0:02:50]} 5. g3 {[%clk 0:02:53]}  Bb7 {[%clk 0:02:49]} 6. d3 {[%clk 0:02:52]}  Nd7 {[%clk 0:02:50]} 7. Bg2 {[%clk 0:02:51]}  g6 {[%clk 0:02:48]} 8. O-O {[%clk 0:02:51]}  Bg7 {[%clk 0:02:49]} 9. f5 {[%clk 0:02:42]}  Ngf6 {[%clk 0:02:48]} 10. Nh4 {[%clk 0:02:37]}  Qb6 {[%clk 0:02:44]} 11. Be3 {[%clk 0:02:32]}  Ne5 {[%clk 0:02:43]} 12. h3 {[%clk 0:02:25]}  b4 {[%clk 0:02:43]} 13. Ne2 {[%clk 0:02:14]}  d5 {[%clk 0:02:43]} 14. exd5 {[%clk 0:01:29]}  Bxd5 {[%clk 0:02:32]} 15. Qe1 {[%clk 0:01:12]}  Qc6 {[%clk 0:02:30]} 16. Qf2 {[%clk 0:01:02]}  O-O {[%clk 0:02:27]} 17. Nf4 {[%clk 0:00:36]}  Bxg2 {[%clk 0:02:23]} 18. Nfxg2 {[%clk 0:00:34]}  c4 {[%clk 0:02:09]} 19. Bd4 {[%clk 0:00:28]}  Nfd7 {[%clk 0:01:57]} 20. dxc4 {[%clk 0:00:26]}  Qxc4 {[%clk 0:01:57]} 21. Rad1 {[%clk 0:00:23]}  Rac8 {[%clk 0:01:57]} 22. Ne3 {[%clk 0:00:23]}  Qc6 {[%clk 0:01:44]} 23. Qg2 {[%clk 0:00:20]}  Qxg2+ {[%clk 0:01:36]} 24. Nhxg2 {[%clk 0:00:20]}  Rfe8 {[%clk 0:01:26]} 25. Rf2 {[%clk 0:00:19]}  Nc5 {[%clk 0:01:23]} 26. fxg6 {[%clk 0:00:18]}  hxg6 {[%clk 0:01:23]} 27. Nf4 {[%clk 0:00:17]}  Ne4 {[%clk 0:01:22]} 28. Rff1 {[%clk 0:00:16]}  e6 {[%clk 0:01:17]} 29. Kg2 {[%clk 0:00:16]}  Red8 {[%clk 0:01:17]} 30. Bxe5 {[%clk 0:00:16]}  Bxe5 {[%clk 0:01:17]} 31. Nd3 {[%clk 0:00:16]}  Bd4 {[%clk 0:01:06]} 32. Ng4 {[%clk 0:00:15]}  Rxc2+ {[%clk 0:01:03]} 33. Kf3 {[%clk 0:00:13]}  Ng5+ {[%clk 0:01:02]} 34. Kf4 {[%clk 0:00:12]}  Nxh3+ {[%clk 0:01:03]} 35. Kf3 {[%clk 0:00:12]}  Rd5 {[%clk 0:00:52]} 36. Nxb4 {[%clk 0:00:12]}  Ng5+ {[%clk 0:00:52]} 37. Kf4 {[%clk 0:00:12]}  Rf5# {[%clk 0:00:52]} 0-1


[Site "https://www.chess.com"]

[Event "Titled Tuesday Blitz April 26 Late 2022"]
[White "Jarocka, Liwia"]
[Black "Baches Garcia, Guillermo"]
[WhiteFideId "21807558"]
[BlackFideId "2209764"]
[WhiteElo "1896"]
[BlackElo "2529"]
[Result "0-1"]
[Round "04"]
[TimeControl "180+1"]
[Date "2022.04.26"]
[WhiteClock "0:00:01"]
[BlackClock "0:00:03"]

1. e4 {[%clk 0:03:00]}  c5 {[%clk 0:02:59]} 2. Nf3 {[%clk 0:03:00]}  d6 {[%clk 0:03:00]} 3. d4 {[%clk 0:03:00]}  cxd4 {[%clk 0:03:01]} 4. Nxd4 {[%clk 0:03:01]}  Nf6 {[%clk 0:03:01]} 5. Nc3 {[%clk 0:03:01]}  Nc6 {[%clk 0:03:02]} 6. Bg5 {[%clk 0:02:59]}  e6 {[%clk 0:03:01]} 7. Qd2 {[%clk 0:02:58]}  h6 {[%clk 0:03:02]} 8. Bxf6 {[%clk 0:02:56]}  gxf6 {[%clk 0:03:03]} 9. O-O-O {[%clk 0:02:55]}  a6 {[%clk 0:03:03]} 10. f4 {[%clk 0:02:55]}  Bd7 {[%clk 0:03:03]} 11. Kb1 {[%clk 0:02:54]}  Qb6 {[%clk 0:03:03]} 12. Nce2 {[%clk 0:02:52]}  O-O-O {[%clk 0:03:03]} 13. g4 {[%clk 0:02:48]}  Kb8 {[%clk 0:03:01]} 14. Bg2 {[%clk 0:02:46]}  Be7 {[%clk 0:02:58]} 15. Nxc6+ {[%clk 0:02:39]}  Bxc6 {[%clk 0:02:55]} 16. Nd4 {[%clk 0:02:39]}  Bd7 {[%clk 0:02:48]} 17. Rhe1 {[%clk 0:02:37]}  Rc8 {[%clk 0:02:44]} 18. h3 {[%clk 0:02:33]}  Rc4 {[%clk 0:02:40]} 19. Nb3 {[%clk 0:02:32]}  Rhc8 {[%clk 0:02:35]} 20. Rc1 {[%clk 0:02:28]}  Bd8 {[%clk 0:02:17]} 21. Red1 {[%clk 0:02:24]}  Bc7 {[%clk 0:02:08]} 22. Qd3 {[%clk 0:02:21]}  Bb5 {[%clk 0:02:02]} 23. Qd2 {[%clk 0:02:21]}  a5 {[%clk 0:01:57]} 24. Nd4 {[%clk 0:02:09]}  Bd7 {[%clk 0:01:49]} 25. b3 {[%clk 0:02:01]}  Bd8 {[%clk 0:01:39]} 26. Ka1 {[%clk 0:01:50]}  Rc3 {[%clk 0:01:34]} 27. Ne2 {[%clk 0:01:47]}  R3c6 {[%clk 0:01:28]} 28. c4 {[%clk 0:01:45]}  f5 {[%clk 0:01:15]} 29. e5 {[%clk 0:01:39]}  Be7 {[%clk 0:01:09]} 30. Bxc6 {[%clk 0:01:05]}  Rxc6 {[%clk 0:01:10]} 31. Nd4 {[%clk 0:01:02]}  Rc8 {[%clk 0:00:54]} 32. gxf5 {[%clk 0:01:02]}  a4 {[%clk 0:00:51]} 33. fxe6 {[%clk 0:00:53]}  fxe6 {[%clk 0:00:50]} 34. b4 {[%clk 0:00:37]}  dxe5 {[%clk 0:00:41]} 35. c5 {[%clk 0:00:37]}  Qc7 {[%clk 0:00:38]} 36. fxe5 {[%clk 0:00:35]}  Qxe5 {[%clk 0:00:37]} 37. Re1 {[%clk 0:00:35]}  Qh8 {[%clk 0:00:35]} 38. Kb1 {[%clk 0:00:35]}  Rd8 {[%clk 0:00:30]} 39. Qf4+ {[%clk 0:00:31]}  Ka8 {[%clk 0:00:26]} 40. Rcd1 {[%clk 0:00:30]}  Bf6 {[%clk 0:00:24]} 41. Rf1 {[%clk 0:00:18]}  Bg7 {[%clk 0:00:22]} 42. Qh4 {[%clk 0:00:14]}  a3 {[%clk 0:00:13]} 43. Nxe6 {[%clk 0:00:13]}  Re8 {[%clk 0:00:09]} 44. Nxg7 {[%clk 0:00:11]}  Qxg7 {[%clk 0:00:09]} 45. Qd4 {[%clk 0:00:11]}  Qg2 {[%clk 0:00:05]} 46. Rf2 {[%clk 0:00:06]}  Qg3 {[%clk 0:00:03]} 47. Rfd2 {[%clk 0:00:01]}  Bc6 {[%clk 0:00:03]} 48. Ka1 {[%clk 0:00:01]}  Re3 {[%clk 0:00:03]} 0-1


[Site "https://www.chess.com"]

[Event "Titled Tuesday Blitz April 26 Late 2022"]
[White "Lehtosaari, Mauri"]
[Black "D`Arruda, Ricardo D."]
[WhiteFideId "501999"]
[BlackFideId "100692"]
[WhiteElo "2525"]
[BlackElo "2381"]
[Result "1-0"]
[Round "04"]
[TimeControl "180+1"]
[Date "2022.04.26"]
[WhiteClock "0:00:11"]
[BlackClock "0:00:11"]

1. d4 {[%clk 0:03:00]}  Nf6 {[%clk 0:02:50]} 2. Nf3 {[%clk 0:03:00]}  d5 {[%clk 0:02:49]} 3. Bg5 {[%clk 0:03:00]}  c6 {[%clk 0:02:49]} 4. Nbd2 {[%clk 0:03:00]}  Nbd7 {[%clk 0:02:48]} 5. e3 {[%clk 0:03:00]}  e6 {[%clk 0:02:48]} 6. Bd3 {[%clk 0:03:00]}  Be7 {[%clk 0:02:48]} 7. c3 {[%clk 0:03:00]}  O-O {[%clk 0:02:49]} 8. O-O {[%clk 0:03:00]}  h6 {[%clk 0:02:49]} 9. Bh4 {[%clk 0:03:00]}  Nh5 {[%clk 0:02:43]} 10. Bxe7 {[%clk 0:02:52]}  Qxe7 {[%clk 0:02:44]} 11. Ne5 {[%clk 0:02:53]}  Nhf6 {[%clk 0:02:43]} 12. f4 {[%clk 0:02:52]}  c5 {[%clk 0:02:33]} 13. g4 {[%clk 0:02:37]}  Ne8 {[%clk 0:02:31]} 14. Qf3 {[%clk 0:02:33]}  Nd6 {[%clk 0:02:26]} 15. Qg2 {[%clk 0:02:23]}  c4 {[%clk 0:02:11]} 16. Bc2 {[%clk 0:02:23]}  Rd8 {[%clk 0:02:05]} 17. Rae1 {[%clk 0:02:16]}  f6 {[%clk 0:01:58]} 18. Ng6 {[%clk 0:02:01]}  Qf7 {[%clk 0:01:58]} 19. h4 {[%clk 0:01:59]}  Nf8 {[%clk 0:01:58]} 20. Nxf8 {[%clk 0:01:55]}  Qxf8 {[%clk 0:01:52]} 21. e4 {[%clk 0:01:46]}  dxe4 {[%clk 0:01:49]} 22. Nxe4 {[%clk 0:01:44]}  Nxe4 {[%clk 0:01:45]} 23. Qxe4 {[%clk 0:01:43]}  f5 {[%clk 0:01:40]} 24. gxf5 {[%clk 0:01:36]}  exf5 {[%clk 0:01:32]} 25. Qe7 {[%clk 0:01:34]}  Bd7 {[%clk 0:01:24]} 26. Re5 {[%clk 0:01:24]}  Qxe7 {[%clk 0:01:21]} 27. Rxe7 {[%clk 0:01:24]}  Kf8 {[%clk 0:01:21]} 28. Rfe1 {[%clk 0:01:21]}  Re8 {[%clk 0:01:21]} 29. R7e5 {[%clk 0:00:56]}  g6 {[%clk 0:01:12]} 30. Kf2 {[%clk 0:00:53]}  h5 {[%clk 0:01:11]} 31. Rg1 {[%clk 0:00:41]}  Kf7 {[%clk 0:01:09]} 32. Rge1 {[%clk 0:00:33]}  b6 {[%clk 0:01:05]} 33. Bd1 {[%clk 0:00:28]}  Bc6 {[%clk 0:00:57]} 34. d5 {[%clk 0:00:27]}  Rxe5 {[%clk 0:00:51]} 35. Rxe5 {[%clk 0:00:25]}  Bd7 {[%clk 0:00:51]} 36. Ke3 {[%clk 0:00:24]}  Rc8 {[%clk 0:00:43]} 37. Kd4 {[%clk 0:00:24]}  Kf6 {[%clk 0:00:40]} 38. Be2 {[%clk 0:00:21]}  b5 {[%clk 0:00:40]} 39. d6 {[%clk 0:00:20]}  Rc6 {[%clk 0:00:38]} 40. Rxb5 {[%clk 0:00:18]}  Rxd6+ {[%clk 0:00:38]} 41. Rd5 {[%clk 0:00:19]}  Re6 {[%clk 0:00:32]} 42. Bxc4 {[%clk 0:00:17]}  Re4+ {[%clk 0:00:32]} 43. Kc5 {[%clk 0:00:17]}  Be6 {[%clk 0:00:28]} 44. Rd4 {[%clk 0:00:13]}  Bxc4 {[%clk 0:00:27]} 45. Rxc4 {[%clk 0:00:12]}  Re2 {[%clk 0:00:25]} 46. b4 {[%clk 0:00:11]}  Rxa2 {[%clk 0:00:25]} 47. Rd4 {[%clk 0:00:12]}  Rh2 {[%clk 0:00:18]} 48. Rd6+ {[%clk 0:00:12]}  Kf7 {[%clk 0:00:18]} 49. Ra6 {[%clk 0:00:10]}  Rxh4 {[%clk 0:00:18]} 50. Rxa7+ {[%clk 0:00:11]}  Kf6 {[%clk 0:00:18]} 51. b5 {[%clk 0:00:11]}  Rxf4 {[%clk 0:00:15]} 52. b6 {[%clk 0:00:11]}  Rf1 {[%clk 0:00:16]} 53. b7 {[%clk 0:00:10]}  Rb1 {[%clk 0:00:17]} 54. Ra6+ {[%clk 0:00:10]}  Ke5 {[%clk 0:00:11]} 55. Rb6 {[%clk 0:00:11]} 1-0


[Site "https://www.chess.com"]

[Event "Titled Tuesday Blitz April 26 Late 2022"]
[White "Makarian, Rudik"]
[Black "Martic, Ivan"]
[WhiteFideId "44105681"]
[BlackFideId "929301"]
[WhiteElo "2388"]
[BlackElo "2317"]
[Result "1-0"]
[Round "04"]
[TimeControl "180+1"]
[Date "2022.04.26"]
[WhiteClock "0:00:11"]
[BlackClock "0:00:15"]

1. d3 {[%clk 0:03:00]}  g6 {[%clk 0:02:58]} 2. g3 {[%clk 0:03:00]}  Bg7 {[%clk 0:02:58]} 3. Bg2 {[%clk 0:03:01]}  c5 {[%clk 0:02:58]} 4. c4 {[%clk 0:03:00]}  Nf6 {[%clk 0:02:56]} 5. Nc3 {[%clk 0:03:00]}  O-O {[%clk 0:02:55]} 6. Bf4 {[%clk 0:03:00]}  Nc6 {[%clk 0:02:54]} 7. Qd2 {[%clk 0:02:58]}  Re8 {[%clk 0:02:51]} 8. Bh6 {[%clk 0:02:58]}  Bxh6 {[%clk 0:02:47]} 9. Qxh6 {[%clk 0:02:57]}  Nd4 {[%clk 0:02:47]} 10. Rc1 {[%clk 0:02:28]}  Qb6 {[%clk 0:02:45]} 11. b3 {[%clk 0:02:21]}  d6 {[%clk 0:02:38]} 12. Nf3 {[%clk 0:02:18]}  Qa5 {[%clk 0:02:22]} 13. Qd2 {[%clk 0:02:07]}  Nxf3+ {[%clk 0:02:20]} 14. Bxf3 {[%clk 0:02:08]}  Rb8 {[%clk 0:02:05]} 15. h4 {[%clk 0:02:00]}  h5 {[%clk 0:02:04]} 16. Nd5 {[%clk 0:01:51]}  Qxd2+ {[%clk 0:02:02]} 17. Kxd2 {[%clk 0:01:52]}  Kg7 {[%clk 0:01:56]} 18. Rb1 {[%clk 0:01:34]}  Nxd5 {[%clk 0:01:52]} 19. Bxd5 {[%clk 0:01:35]}  b5 {[%clk 0:01:48]} 20. Bc6 {[%clk 0:01:34]}  Rd8 {[%clk 0:01:39]} 21. Bxb5 {[%clk 0:01:22]}  a6 {[%clk 0:01:38]} 22. Bc6 {[%clk 0:01:22]}  Rb6 {[%clk 0:01:35]} 23. Bd5 {[%clk 0:01:19]}  e6 {[%clk 0:01:35]} 24. Bg2 {[%clk 0:01:19]}  d5 {[%clk 0:01:35]} 25. Kc3 {[%clk 0:01:19]}  d4+ {[%clk 0:01:33]} 26. Kc2 {[%clk 0:01:18]}  a5 {[%clk 0:01:33]} 27. e3 {[%clk 0:00:31]}  e5 {[%clk 0:01:33]} 28. exd4 {[%clk 0:00:31]}  Rxd4 {[%clk 0:01:33]} 29. Rhe1 {[%clk 0:00:30]}  f6 {[%clk 0:01:33]} 30. Bd5 {[%clk 0:00:27]}  Bf5 {[%clk 0:01:30]} 31. Re3 {[%clk 0:00:27]}  Rb4 {[%clk 0:01:23]} 32. Kc3 {[%clk 0:00:23]}  a4 {[%clk 0:01:10]} 33. a3 {[%clk 0:00:20]}  Rxb3+ {[%clk 0:01:09]} 34. Rxb3 {[%clk 0:00:20]}  axb3 {[%clk 0:01:10]} 35. a4 {[%clk 0:00:18]}  Bc8 {[%clk 0:01:08]} 36. Kxb3 {[%clk 0:00:17]}  Kf8 {[%clk 0:01:09]} 37. Kc3 {[%clk 0:00:17]}  Ke7 {[%clk 0:01:09]} 38. a5 {[%clk 0:00:16]}  Kd6 {[%clk 0:01:09]} 39. Re1 {[%clk 0:00:16]}  Kc7 {[%clk 0:01:04]} 40. Be4 {[%clk 0:00:11]}  f5 {[%clk 0:01:00]} 41. Bd5 {[%clk 0:00:11]}  Kd6 {[%clk 0:00:57]} 42. Rb1 {[%clk 0:00:10]}  e4 {[%clk 0:00:56]} 43. dxe4 {[%clk 0:00:10]}  fxe4 {[%clk 0:00:57]} 44. a6 {[%clk 0:00:09]}  Rd3+ {[%clk 0:00:55]} 45. Kc2 {[%clk 0:00:09]}  Ra3 {[%clk 0:00:53]} 46. Rb6+ {[%clk 0:00:08]}  Ke5 {[%clk 0:00:51]} 47. Bb7 {[%clk 0:00:09]}  Bf5 {[%clk 0:00:50]} 48. Kb2 {[%clk 0:00:09]}  Ra4 {[%clk 0:00:47]} 49. Rb3 {[%clk 0:00:08]}  Be6 {[%clk 0:00:40]} 50. Ra3 {[%clk 0:00:08]}  Rb4+ {[%clk 0:00:40]} 51. Ka1 {[%clk 0:00:08]}  Bxc4 {[%clk 0:00:23]} 52. a7 {[%clk 0:00:08]}  Rxb7 {[%clk 0:00:20]} 53. a8=Q {[%clk 0:00:08]}  Bd5 {[%clk 0:00:21]} 54. Qe8+ {[%clk 0:00:09]}  Kd4 {[%clk 0:00:21]} 55. Qh8+ {[%clk 0:00:09]}  Kc4 {[%clk 0:00:18]} 56. Qc3+ {[%clk 0:00:09]}  Kb5 {[%clk 0:00:17]} 57. Ra5+ {[%clk 0:00:10]}  Kb6 {[%clk 0:00:15]} 58. Qxc5# {[%clk 0:00:11]} 1-0


[Site "https://www.chess.com"]

[Event "Titled Tuesday Blitz April 26 Late 2022"]
[White "Maltsevskaya, Aleksandra"]
[Black "Menna Barreto, Felipe Kubiaki"]
[WhiteFideId "24174041"]
[BlackFideId "2119757"]
[WhiteElo "2235"]
[BlackElo "2261"]
[Result "0-1"]
[Round "04"]
[TimeControl "180+1"]
[Date "2022.04.26"]
[WhiteClock "0:00:06"]
[BlackClock "0:00:38"]

1. Nf3 {[%clk 0:01:29]}  c5 {[%clk 0:02:59]} 2. e4 {[%clk 0:01:27]}  Nc6 {[%clk 0:02:59]} 3. d4 {[%clk 0:01:21]}  cxd4 {[%clk 0:03:00]} 4. Nxd4 {[%clk 0:01:22]}  Nf6 {[%clk 0:03:00]} 5. Nc3 {[%clk 0:01:22]}  h5 {[%clk 0:03:00]} 6. Bg5 {[%clk 0:01:22]}  Qa5 {[%clk 0:02:58]} 7. Bxf6 {[%clk 0:01:16]}  gxf6 {[%clk 0:02:59]} 8. Qd2 {[%clk 0:01:16]}  Bh6 {[%clk 0:02:52]} 9. Qd3 {[%clk 0:01:08]}  Ne5 {[%clk 0:02:24]} 10. Qd1 {[%clk 0:01:08]}  a6 {[%clk 0:02:16]} 11. Be2 {[%clk 0:01:07]}  Qb4 {[%clk 0:02:10]} 12. Nb3 {[%clk 0:01:03]}  h4 {[%clk 0:02:05]} 13. h3 {[%clk 0:01:01]}  d6 {[%clk 0:02:05]} 14. a3 {[%clk 0:00:57]}  Qb6 {[%clk 0:01:59]} 15. Nd5 {[%clk 0:00:58]}  Qd8 {[%clk 0:01:58]} 16. f4 {[%clk 0:00:58]}  Nc6 {[%clk 0:01:56]} 17. Bg4 {[%clk 0:00:58]}  e6 {[%clk 0:01:55]} 18. Ne3 {[%clk 0:00:56]}  Bxf4 {[%clk 0:01:55]} 19. Qf3 {[%clk 0:00:56]}  Bg3+ {[%clk 0:01:52]} 20. Ke2 {[%clk 0:00:54]}  Ne5 {[%clk 0:01:52]} 21. Qf1 {[%clk 0:00:53]}  Bd7 {[%clk 0:01:52]} 22. Qd1 {[%clk 0:00:50]}  Qb6 {[%clk 0:01:48]} 23. Qd4 {[%clk 0:00:46]}  Qc7 {[%clk 0:01:44]} 24. c4 {[%clk 0:00:44]}  Rc8 {[%clk 0:01:43]} 25. Rac1 {[%clk 0:00:45]}  Ke7 {[%clk 0:01:38]} 26. Rhf1 {[%clk 0:00:45]}  Rh6 {[%clk 0:01:33]} 27. Nd2 {[%clk 0:00:34]}  Nc6 {[%clk 0:01:21]} 28. Qd3 {[%clk 0:00:32]}  Qb6 {[%clk 0:01:19]} 29. b4 {[%clk 0:00:32]}  Nd4+ {[%clk 0:01:16]} 30. Kd1 {[%clk 0:00:32]}  Ba4+ {[%clk 0:01:16]} 31. Nc2 {[%clk 0:00:31]}  Nxc2 {[%clk 0:01:16]} 32. Rxc2 {[%clk 0:00:32]}  a5 {[%clk 0:01:14]} 33. Ke2 {[%clk 0:00:27]}  Bxc2 {[%clk 0:01:13]} 34. Qxc2 {[%clk 0:00:27]}  axb4 {[%clk 0:01:14]} 35. axb4 {[%clk 0:00:28]}  Qxb4 {[%clk 0:01:14]} 36. Rb1 {[%clk 0:00:28]}  Qc5 {[%clk 0:01:12]} 37. Rxb7+ {[%clk 0:00:27]}  Kf8 {[%clk 0:01:13]} 38. Qd3 {[%clk 0:00:25]}  Qf2+ {[%clk 0:01:11]} 39. Kd1 {[%clk 0:00:25]}  Qe1+ {[%clk 0:01:12]} 40. Kc2 {[%clk 0:00:26]}  Kg7 {[%clk 0:01:09]} 41. Bxe6 {[%clk 0:00:25]}  Rf8 {[%clk 0:01:02]} 42. Qd5 {[%clk 0:00:24]}  Bf4 {[%clk 0:01:00]} 43. Nf3 {[%clk 0:00:20]}  Qe2+ {[%clk 0:00:59]} 44. Kb3 {[%clk 0:00:20]}  Qxg2 {[%clk 0:00:56]} 45. Nd4 {[%clk 0:00:19]}  Qf1 {[%clk 0:00:40]} 46. Bxf7 {[%clk 0:00:17]}  Qb1+ {[%clk 0:00:39]} 47. Kc3 {[%clk 0:00:13]}  Qc1+ {[%clk 0:00:38]} 48. Nc2 {[%clk 0:00:13]}  Be5+ {[%clk 0:00:38]} 49. Kb3 {[%clk 0:00:07]}  Qb1+ {[%clk 0:00:38]} 50. Ka4 {[%clk 0:00:06]}  Ra8+ {[%clk 0:00:38]} 51. Qa5 {[%clk 0:00:05]}  Rxa5+ {[%clk 0:00:38]} 52. Kxa5 {[%clk 0:00:05]}  Qa2+ {[%clk 0:00:38]} 53. Kb5 {[%clk 0:00:05]}  Qxc2 {[%clk 0:00:37]} 54. c5 {[%clk 0:00:05]}  Qxc5+ {[%clk 0:00:37]} 55. Ka6 {[%clk 0:00:05]}  Qc6+ {[%clk 0:00:36]} 56. Ka7 {[%clk 0:00:05]}  Qxb7+ {[%clk 0:00:37]} 57. Kxb7 {[%clk 0:00:06]}  Kxf7 {[%clk 0:00:38]} 0-1


[Site "https://www.chess.com"]

[Event "Titled Tuesday Blitz April 26 Late 2022"]
[White "Martin Barcelo, Carles"]
[Black "Nazaretyan, Tigran"]
[WhiteFideId "24561444"]
[BlackFideId "24162345"]
[WhiteElo "1875"]
[BlackElo "2225"]
[Result "1/2-1/2"]
[Round "04"]
[TimeControl "180+1"]
[Date "2022.04.26"]
[WhiteClock "0:00:40"]
[BlackClock "0:01:10"]

1. e4 {[%clk 0:03:00]}  c5 {[%clk 0:02:59]} 2. Nf3 {[%clk 0:02:59]}  Nc6 {[%clk 0:02:58]} 3. Bb5 {[%clk 0:02:54]}  g6 {[%clk 0:02:57]} 4. Bxc6 {[%clk 0:02:55]}  dxc6 {[%clk 0:02:58]} 5. d3 {[%clk 0:02:54]}  Bg7 {[%clk 0:02:58]} 6. h3 {[%clk 0:02:55]}  Nf6 {[%clk 0:02:58]} 7. O-O {[%clk 0:02:54]}  Nd7 {[%clk 0:02:57]} 8. Nc3 {[%clk 0:02:50]}  e5 {[%clk 0:02:56]} 9. Be3 {[%clk 0:02:50]}  b6 {[%clk 0:02:56]} 10. Nd2 {[%clk 0:02:47]}  Nf8 {[%clk 0:02:50]} 11. f4 {[%clk 0:02:47]}  exf4 {[%clk 0:02:50]} 12. Bxf4 {[%clk 0:02:48]}  Ne6 {[%clk 0:02:50]} 13. Bg3 {[%clk 0:02:45]}  Qg5 {[%clk 0:02:48]} 14. Kh2 {[%clk 0:02:30]}  Nd4 {[%clk 0:02:42]} 15. Nf3 {[%clk 0:02:29]}  Nxf3+ {[%clk 0:02:37]} 16. Rxf3 {[%clk 0:02:30]}  O-O {[%clk 0:02:35]} 17. Qe2 {[%clk 0:02:20]}  Be6 {[%clk 0:02:30]} 18. e5 {[%clk 0:02:11]}  Bd5 {[%clk 0:02:28]} 19. Rff1 {[%clk 0:02:03]}  Rae8 {[%clk 0:02:26]} 20. Rae1 {[%clk 0:02:02]}  f5 {[%clk 0:02:18]} 21. Nxd5 {[%clk 0:01:50]}  cxd5 {[%clk 0:02:18]} 22. Bf4 {[%clk 0:01:51]}  Qe7 {[%clk 0:02:15]} 23. Qd2 {[%clk 0:01:49]}  Qc7 {[%clk 0:02:08]} 24. d4 {[%clk 0:01:40]}  cxd4 {[%clk 0:02:06]} 25. Qxd4 {[%clk 0:01:40]}  Qc4 {[%clk 0:02:00]} 26. Rd1 {[%clk 0:01:33]}  Qxd4 {[%clk 0:01:56]} 27. Rxd4 {[%clk 0:01:34]}  Bxe5 {[%clk 0:01:57]} 28. Rxd5 {[%clk 0:01:34]}  Bxf4+ {[%clk 0:01:57]} 29. Rxf4 {[%clk 0:01:35]}  Re2 {[%clk 0:01:57]} 30. Rc4 {[%clk 0:01:31]}  f4 {[%clk 0:01:57]} 31. Rd7 {[%clk 0:00:42]}  f3 {[%clk 0:01:55]} 32. Rcc7 {[%clk 0:00:42]}  Rxg2+ {[%clk 0:01:45]} 33. Kh1 {[%clk 0:00:42]}  Rf5 {[%clk 0:01:24]} 34. Rd8+ {[%clk 0:00:40]}  Rf8 {[%clk 0:01:24]} 35. Rdd7 {[%clk 0:00:41]}  Rf4 {[%clk 0:01:11]} 36. Rd8+ {[%clk 0:00:40]}  Rf8 {[%clk 0:01:10]} 37. Rdd7 {[%clk 0:00:40]} 1/2-1/2


[Site "https://www.chess.com"]